[Event "Nordic Chess-ch 2019"]
[Site "Sarpsborg"]
[Date "2019.06.27"]
[Round "9.16"]
[White "Ptacnikova, Lenka"]
[Black "Kreken, Eivind Grunt"]
[Result "0-1"]
[ECO "A34"]
[WhiteElo "2145"]
[BlackElo "1784"]
[Annotator "NA"]
[PlyCount "98"]
[EventDate "2019.06.21"]
[EventType "swiss"]
[EventCountry "NOR"]
[SourceTitle "playchess.com"]
[Source "ChessBase"]
[SourceQuality "1"]
[TimeControl "40/5400+30:1800+30"]

1. c4 {[%emt 0:00:00]} c5 {[%emt 0:00:09]} 2. g3 {[%emt 0:00:00]} Nf6 {[%emt 0:00:09]} 3. Bg2 {[%emt 0:00:00]} d5 {[%emt 0:00:09]} 4. cxd5 {[%emt 0:00:00]} Nxd5 {[%emt 0:00:09]} 5. Nc3 {[%emt 0:00:15]} Nc7 {[%emt 0:00:08]} 6. Nf3 {[%emt 0:00:43]} Nc6 {[%emt 0:00:10]} 7. O-O {[%emt 0:00:18]} e5 {[%emt 0:00:08]} 8. b3 {[%emt 0:00:15]} Be7 {[%emt 0:00:44]} 9. Bb2 {[%emt 0:00:12]} Be6 {[%emt 0:04:00] A34: Symmetrical English: 2 Nc3, lines with ...d5} (9... O-O 10. Ne1 Qd7 11. Nd3 b6 12. Bxc6 Qxc6 13. Nxe5 Qe6 14. Nd3 Bb7 15. Nf4 Qd7 16. d3 Rad8 17. f3 {½-½ (30) Maghsoodloo,P (2679)-Esipenko,A (2584) Wijk aan Zee 2019}) 10. Rc1 {[%emt 0:07:35]} f6 {[%emt 0:05:06]} 11. Ne1 {[%emt 0:09:37]} Qd7 {[%emt 0:09:08]} 12. Nd3 {[%emt 0:13:36]} O-O $146 {[%emt 0:02:48]} ({Predecessor:} 12... Rd8 13. Na4 b6 14. f4 Nd4 15. fxe5 Bg4 16. Bxd4 Qxd4+ {1-0 (44) Kosten,A (2524)-Stromer,A (2263) Etang Sale 2000}) 13. f4 {[%emt 0:07:22]} Nb4 {[%emt 0:19:40]} 14. Nxb4 {[%emt 0:05:03]} cxb4 {[%emt 0:00:12]} 15. Na4 {[%emt 0:01:39]} exf4 {[%emt 0:21:51]} 16. gxf4 {[%emt 0:13:53]} Nb5 {[%emt 0:09:34]} 17. Nc5 {[%emt 0:15:53]} Bxc5+ {[%emt 0:00:27]} 18. Rxc5 {[%emt 0:00:04]} Rfd8 {[%emt 0:01:52]} 19. f5 {[%emt 0:01:13]} Bf7 {[%emt 0:00:52]} 20. d3 {[%emt 0:00:52]} Nc3 {[%emt 0:03:22]} 21. Bxc3 {[%emt 0:01:45]} bxc3 {[%emt 0:00:38]} 22. Qe1 {[%emt 0:03:44]} Qd4+ {[%emt 0:01:18]} 23. Qf2 {[%emt 0:00:04]} Qxf2+ {[%emt 0:01:20]} 24. Kxf2 {[%emt 0:00:05]} Rac8 {[%emt 0:01:19]} 25. Rxc8 {[%emt 0:11:10]} Rxc8 {[%emt 0:00:36]} 26. Bxb7 {[%emt 0:00:21]} Rc5 {[%emt 0:01:15]} 27. Rc1 {[%emt 0:04:05]} Rxf5+ {[%emt 0:00:50]} 28. Bf3 {[%emt 0:00:41]} Rc5 {[%emt 0:03:36]} 29. Ke3 {[%emt 0:01:28]} Kf8 {[%emt 0:00:24]} 30. Kd4 {[%emt 0:00:24]} Rc7 {[%emt 0:00:32]} 31. Rxc3 {[%emt 0:00:15]} Rxc3 {[%emt 0:00:10]} 32. Kxc3 {[%emt 0:00:04]} Ke7 {[%emt 0:00:16]} 33. Kb4 {[%emt 0:03:09]} Kd6 {[%emt 0:00:23]} 34. Kb5 {[%emt 0:00:09]} Kc7 {[%emt 0:00:22]} 35. Ka6 {[%emt 0:00:17]} Kb8 {[%emt 0:00:15]} 36. d4 {[%emt 0:00:49]} Be6 {[%emt 0:00:29]} 37. d5 {[%emt 0:00:18]} Bd7 {[%emt 0:00:16]} 38. d6 {[%emt 0:01:00]} g5 {[%emt 0:00:29]} 39. b4 {[%emt 0:00:33]} g4 {[%emt 0:00:18]} 40. Bg2 {[%emt 0:00:27]} h5 {[%emt 0:00:26]} 41. b5 {[%emt 0:30:22]} h4 $18 {[%emt 0:36:00]} 42. b6 {[%emt 0:00:00]} axb6 {[%emt 0:00:00]} 43. Kxb6 {[%emt 0:00:00]} f5 {[%emt 0:00:00]} 44. e3 {[%emt 0:00:00]} Ba4 {[%emt 0:00:00]} 45. Bd5 {[%emt 0:01:05]} g3 {[%emt 0:00:00]} 46. hxg3 {[%emt 0:00:06]} hxg3 {[%emt 0:00:00]} 47. Bb7 {[%emt 0:01:50]} Bd7 {[%emt 0:00:00]} 48. Bg2 {[%emt 0:00:39]} Ba4 {[%emt 0:00:00]} 49. Kc5 {[%emt 0:00:26]} Bc2 {[%emt 0:00:00]} 0-1

[Event "Nordic Chess-ch 2019"]
[Site "Sarpsborg"]
[Date "2019.06.27"]
[Round "9.18"]
[White "Rishovd, Svein"]
[Black "Stellas, Dimitrios"]
[Result "1/2-1/2"]
[ECO "E18"]
[WhiteElo "2113"]
[BlackElo "1976"]
[Annotator "NA"]
[PlyCount "144"]
[EventDate "2019.06.21"]
[EventType "swiss"]
[EventCountry "NOR"]
[SourceTitle "playchess.com"]
[Source "ChessBase"]
[SourceQuality "1"]
[TimeControl "40/5400+30:1800+30"]

1. c4 {[%emt 0:00:00]} e6 {[%emt 0:00:10]} 2. g3 {[%emt 0:00:30]} d5 {[%emt 0:00:32]} 3. Bg2 {[%emt 0:01:05]} Nf6 {[%emt 0:00:49]} 4. Nf3 {[%emt 0:00:31]} Be7 {[%emt 0:00:34]} 5. O-O {[%emt 0:00:52]} O-O {[%emt 0:00:21]} 6. d4 {[%emt 0:03:16]} b6 {[%emt 0:01:52]} 7. cxd5 {[%emt 0:01:51]} exd5 {[%emt 0:00:18]} 8. Nc3 {[%emt 0:00:39]} Bb7 {[%emt 0:00:49]} 9. Bf4 {[%emt 0:01:59]} Na6 {[%emt 0:01:24]} 10. Qa4 {[%emt 0:08:50] E18: Queen's Indian: Old Main Line (4 g3 Bb7 5 Bg2 Be7 6 0-0 0-0 7 Nc3)} (10. Rc1 c5 11. Ne5 Rb8 12. e3 h6 13. Ng4 Ra8 14. dxc5 Nxc5 15. Nxf6+ Bxf6 16. Nxd5 Bxb2 17. Rc2 Ba3 18. Bc7 Qe8 19. Bd6 Rd8 20. Bxf8 Kxf8 21. Rd2 Ne4 22. Rd4 Nd6 23. Qd3 Bc5 24. Qh7 f6 25. Rg4 {1-0 (25) Rodshtein,M (2699)-Colin,V (2383) Brest 2019}) 10... c5 {[%emt 0:04:42]} 11. Rfd1 {[%emt 0:02:08]} Nc7 $146 {[%emt 0:05:37]} ({Predecessor:} 11... Qe8 12. Qb3 c4 13. Qc2 Nb4 14. Qb1 Rd8 15. Ne5 Nc6 16. b3 Bd6 17. Nxc6 Qxc6 {1-0 (24) De Marchi,O (2256)-Duffau,P (2040) Creon 2006}) 12. dxc5 {[%emt 0:06:26]} bxc5 {[%emt 0:01:30]} 13. Ne5 {[%emt 0:02:24]} Ne6 {[%emt 0:11:22]} 14. Nc6 {[%emt 0:08:30]} Bxc6 {[%emt 0:00:47]} 15. Qxc6 {[%emt 0:00:35]} Nxf4 {[%emt 0:07:03]} 16. gxf4 {[%emt 0:00:26]} Rc8 {[%emt 0:03:33]} 17. Qa6 {[%emt 0:02:11]} Qd6 {[%emt 0:06:09]} 18. Qxd6 {[%emt 0:04:47]} Bxd6 {[%emt 0:00:15]} 19. Nxd5 {[%emt 0:06:20]} Nxd5 {[%emt 0:01:30]} 20. Rxd5 {[%emt 0:01:25]} Bxf4 {[%emt 0:01:02]} 21. e3 {[%emt 0:00:15]} Bc7 {[%emt 0:02:31]} 22. Bh3 {[%emt 0:02:15]} Rfd8 {[%emt 0:01:16]} 23. Rad1 {[%emt 0:06:29]} Rb8 {[%emt 0:02:00]} 24. b3 {[%emt 0:00:30]} Bb6 {[%emt 0:01:01]} 25. Bd7 {[%emt 0:01:45]} Kf8 {[%emt 0:03:03]} 26. Kf1 {[%emt 0:02:56]} Rb7 {[%emt 0:03:15]} 27. Ke2 {[%emt 0:00:17]} g6 {[%emt 0:01:48]} 28. h3 {[%emt 0:06:16]} Ke7 {[%emt 0:02:35]} 29. Bc6 {[%emt 0:00:21]} Rxd5 {[%emt 0:00:49]} 30. Rxd5 {[%emt 0:00:33]} Rc7 {[%emt 0:03:52]} 31. Bb5 {[%emt 0:00:34]} Ke6 {[%emt 0:05:01]} 32. Bc4 {[%emt 0:05:29]} Ke7 {[%emt 0:00:49]} 33. e4 {[%emt 0:01:52]} f6 {[%emt 0:01:21]} 34. Bb5 {[%emt 0:00:20]} g5 {[%emt 0:03:29]} 35. Kf3 {[%emt 0:05:59]} Kf7 {[%emt 0:02:40]} 36. Kg4 {[%emt 0:01:23]} Kg6 {[%emt 0:01:39]} 37. Be8+ {[%emt 0:00:24]} Kg7 {[%emt 0:00:21]} 38. Bb5 {[%emt 0:06:48]} Kg6 {[%emt 0:02:09]} 39. f4 {[%emt 0:01:49]} gxf4 {[%emt 0:01:27]} 40. Kxf4 {[%emt 0:01:21]} Re7 {[%emt 0:03:06]} 41. Kf3 {[%emt 0:09:06]} Re5 {[%emt 0:08:44]} 42. Rd1 {[%emt 0:01:49]} Kg5 {[%emt 0:08:19]} 43. Bd7 {[%emt 0:05:47]} Kh6 $14 {[%emt 0:02:50]} 44. Bf5 {[%emt 0:01:40]} Re7 {[%emt 0:00:28]} 45. Rd6 {[%emt 0:01:55]} Kg7 {[%emt 0:00:18]} 46. Kg4 {[%emt 0:00:36]} Ba5 {[%emt 0:01:47]} 47. Be6 {[%emt 0:01:52]} Kg6 {[%emt 0:02:01]} 48. Rc6 {[%emt 0:00:35]} h5+ {[%emt 0:00:51]} 49. Kf3 {[%emt 0:00:05]} Bb4 {[%emt 0:00:44]} 50. Bf5+ {[%emt 0:00:15]} Kg5 {[%emt 0:01:24]} 51. Rc8 {[%emt 0:00:46]} Rg7 {[%emt 0:00:34]} 52. Rh8 {[%emt 0:02:26]} Kh4 {[%emt 0:00:21]} 53. Bg4 {[%emt 0:03:26]} Rg5 {[%emt 0:01:38]} 54. Rh7 {[%emt 0:00:55]} a5 {[%emt 0:00:28]} 55. Ke3 {[%emt 0:02:34]} Kg3 {[%emt 0:02:11]} 56. Bxh5 {[%emt 0:00:45]} Kxh3 {[%emt 0:00:06]} 57. Bf3+ {[%emt 0:02:37]} Kg3 {[%emt 0:00:29]} 58. Rh1 {[%emt 0:00:26]} Bd2+ {[%emt 0:02:13]} 59. Kxd2 {[%emt 0:02:46]} Kxf3 {[%emt 0:00:16]} 60. Kd3 {[%emt 0:00:09]} Kf4 {[%emt 0:01:03]} 61. Rf1+ {[%emt 0:03:18]} Ke5 {[%emt 0:00:03]} 62. a4 {[%emt 0:00:33]} Rg3+ {[%emt 0:05:59]} 63. Kc4 {[%emt 0:00:08]} Re3 {[%emt 0:01:02]} 64. Rf5+ {[%emt 0:00:50]} Ke6 {[%emt 0:00:05]} 65. Rxc5 {[%emt 0:01:05]} Rxe4+ {[%emt 0:00:28]} 66. Kd3 {[%emt 0:00:39]} Re5 {[%emt 0:00:24]} 67. Rc8 {[%emt 0:01:39]} Rh5 {[%emt 0:01:43]} 68. Ra8 {[%emt 0:00:35]} Rd5+ {[%emt 0:01:57]} 69. Kc4 {[%emt 0:00:17]} Re5 {[%emt 0:00:23]} 70. Kd4 {[%emt 0:01:00]} Rd5+ {[%emt 0:00:15]} 71. Kc4 {[%emt 0:00:08]} Re5 {[%emt 0:00:46]} 72. Kd4 {[%emt 0:00:14]} Rd5+ {[%emt 0:00:35]} 1/2-1/2

[Event "Nordic Chess-ch 2019"]
[Site "Sarpsborg"]
[Date "2019.06.27"]
[Round "9.19"]
[White "Gonzalez, Francisco Silva"]
[Black "Schouten, Mathias Lind"]
[Result "1-0"]
[ECO "A00"]
[WhiteElo "2095"]
[BlackElo "1967"]
[Annotator "NA RC"]
[PlyCount "63"]
[EventDate "2019.06.21"]
[EventType "swiss"]
[EventCountry "NOR"]
[SourceTitle "playchess.com"]
[Source "ChessBase"]
[SourceQuality "1"]
[TimeControl "40/5400+30:1800+30"]

1. a3 {[%emt 0:20:23]} c5 {[%emt 0:01:40]} 2. Nf3 {[%emt 0:02:41]} Nc6 {[%emt 0:00:16]} 3. b3 {[%emt 0:00:18]} e5 {[%emt 0:03:42]} 4. e4 {[%emt 0:01:22]} Nf6 {[%emt 0:02:25]} 5. Nc3 {[%emt 0:01:26]} d6 {[%emt 0:06:17]} 6. Bb5 {[%emt 0:01:25]} Be7 {[%emt 0:02:23]} 7. O-O {[%emt 0:00:46]} O-O {[%emt 0:00:13]} 8. Bxc6 {[%emt 0:00:06]} bxc6 {[%emt 0:00:05]} 9. h3 {[%emt 0:00:10]} Qc7 {[%emt 0:16:01]} 10. d3 {[%emt 0:00:49]} h6 {[%emt 0:00:16]} 11. Re1 {[%emt 0:02:49]} Re8 {[%emt 0:01:26]} 12. Ne2 {[%emt 0:05:48]} a5 {[%emt 0:08:17]} 13. a4 {[%emt 0:00:36]} Bf8 {[%emt 0:04:17]} 14. Ng3 {[%emt 0:01:06]} d5 {[%emt 0:11:26]} 15. Nh4 {[%emt 0:04:04]} c4 {[%emt 0:10:01]} 16. bxc4 {[%emt 0:04:42]} dxc4 {[%emt 0:00:12]} 17. Qf3 {[%emt 0:00:46]} cxd3 {[%emt 0:04:10]} 18. Qxd3 {[%emt 0:00:26]} Rb8 {[%emt 0:05:34]} 19. Qf3 {[%emt 0:01:02]} Re6 {[%emt 0:00:53]} 20. Nhf5 {[%emt 0:00:37]} Kh7 {[%emt 0:02:28]} 21. Rd1 {[%emt 0:01:23]} c5 {[%emt 0:01:20]} 22. Bd2 {[%emt 0:01:05]} Rb2 {[%emt 0:00:39]} 23. Bc3 {[%emt 0:00:16]} Rb8 {[%emt 0:00:53]} 24. Ne3 {[%emt 0:03:32]} Bb7 {[%emt 0:01:32]} 25. Nc4 {[%emt 0:00:07]} Ra8 {[%emt 0:02:31]} 26. Kh2 {[%emt 0:03:34]} Re7 {[%emt 0:08:15]} 27. Qf5+ {[%emt 0:00:26]} Kh8 {[%emt 0:00:14]} 28. Bxe5 {[%emt 0:00:27]} Rxe5 {[%emt 0:00:59]} 29. Qxe5 {[%emt 0:04:41]} Qxe5 {[%emt 0:00:06]} 30. Nxe5 {[%emt 0:00:22]} Nxe4 {[%emt 0:00:05]} 31. Rd7 {[%emt 0:03:09]} Bc8 {[%emt 0:02:22]} 32. Nxe4 {[%emt 0:01:04]} 1-0

[Event "Nordic Chess-ch 2019"]
[Site "Sarpsborg"]
[Date "2019.06.27"]
[Round "9.22"]
[White "Kro, Andreas Fuskeland"]
[Black "Tunsjo, Axel"]
[Result "0-1"]
[ECO "E10"]
[WhiteElo "1565"]
[BlackElo "2002"]
[Annotator "NA RC"]
[PlyCount "58"]
[EventDate "2019.06.21"]
[EventType "swiss"]
[EventCountry "NOR"]
[SourceTitle "playchess.com"]
[Source "ChessBase"]
[SourceQuality "1"]
[TimeControl "40/5400+30:1800+30"]

1. d4 {[%emt 0:00:00]} Nf6 {[%emt 0:00:00]} 2. c4 {[%emt 0:00:00]} e6 {[%emt 0:00:02]} 3. Nf3 {[%emt 0:00:00]} c5 {[%emt 0:01:14]} 4. d5 {[%emt 0:01:16]} b5 {[%emt 0:00:14]} 5. b3 {[%emt 0:01:58]} Bb7 {[%emt 0:01:10]} 6. Bg5 {[%emt 0:02:10]} bxc4 {[%emt 0:02:12]} 7. bxc4 {[%emt 0:00:16]} exd5 {[%emt 0:01:41]} 8. cxd5 {[%emt 0:00:37]} Bxd5 {[%emt 0:00:55]} 9. Qxd5 {[%emt 0:02:49]} Nxd5 {[%emt 0:00:31]} 10. Bxd8 {[%emt 0:00:04]} Kxd8 {[%emt 0:00:13]} 11. g3 {[%emt 0:01:54]} Be7 {[%emt 0:03:48]} 12. Bg2 {[%emt 0:05:45]} Nc6 {[%emt 0:02:56]} 13. O-O {[%emt 0:01:57]} Bf6 {[%emt 0:00:53]} 14. Nbd2 {[%emt 0:01:51]} Bxa1 {[%emt 0:03:46]} 15. Rxa1 {[%emt 0:00:19]} Nc3 {[%emt 0:01:01]} 16. e3 {[%emt 0:01:57]} Ke7 {[%emt 0:00:51]} 17. Nc4 {[%emt 0:02:50]} d5 {[%emt 0:02:08]} 18. Nce5 {[%emt 0:04:56]} Rac8 {[%emt 0:00:52]} 19. Nd3 {[%emt 0:03:23]} c4 {[%emt 0:03:41]} 20. Nde5 {[%emt 0:01:32]} Nxe5 {[%emt 0:00:36]} 21. Nxe5 {[%emt 0:00:09]} Rhd8 {[%emt 0:00:13]} 22. h4 {[%emt 0:02:49]} d4 {[%emt 0:01:02]} 23. exd4 {[%emt 0:03:17]} Ne2+ {[%emt 0:00:09]} 24. Kh2 {[%emt 0:00:20]} Nxd4 {[%emt 0:00:05]} 25. Rc1 {[%emt 0:04:06]} c3 {[%emt 0:00:19]} 26. Ng4 {[%emt 0:01:26]} Kf8 {[%emt 0:00:50]} 27. Ne3 {[%emt 0:00:50]} Ne2 {[%emt 0:00:22]} 28. Rc2 {[%emt 0:00:42]} Rd2 {[%emt 0:00:05]} 29. Bf3 {[%emt 0:00:42]} Nd4 {[%emt 0:00:23]} 0-1

[Event "Nordic Chess-ch 2019"]
[Site "Sarpsborg"]
[Date "2019.06.27"]
[Round "9.23"]
[White "Kristiansen, Rune Harald"]
[Black "Skaar, Ben Samuel Groth"]
[Result "1-0"]
[ECO "D05"]
[WhiteElo "1849"]
[BlackElo "1362"]
[Annotator "NA RC"]
[PlyCount "57"]
[EventDate "2019.06.21"]
[EventType "swiss"]
[EventCountry "NOR"]
[SourceTitle "playchess.com"]
[Source "ChessBase"]
[SourceQuality "1"]
[TimeControl "40/5400+30:1800+30"]

1. d4 {[%emt 0:00:00]} d5 {[%emt 0:00:00]} 2. Nf3 {[%emt 0:00:00]} Nf6 {[%emt 0:00:00]} 3. e3 {[%emt 0:00:13]} e6 {[%emt 0:00:00]} 4. Bd3 {[%emt 0:00:51]} Be7 {[%emt 0:00:08]} 5. Nbd2 {[%emt 0:00:58]} Nbd7 {[%emt 0:00:17]} 6. b3 {[%emt 0:01:34]} c5 {[%emt 0:00:09]} 7. Bb2 {[%emt 0:01:07]} b6 {[%emt 0:01:13]} 8. Ne5 {[%emt 0:07:38]} Nxe5 {[%emt 0:09:21]} 9. dxe5 {[%emt 0:00:09]} Nd7 {[%emt 0:00:06]} 10. Qg4 {[%emt 0:02:28]} g6 {[%emt 0:07:57]} 11. h4 {[%emt 0:15:00]} h5 {[%emt 0:08:51]} 12. Qg3 {[%emt 0:00:38]} Rg8 {[%emt 0:13:58]} 13. e4 {[%emt 0:07:44]} Bb7 {[%emt 0:08:44]} 14. exd5 {[%emt 0:00:36]} Bxd5 {[%emt 0:00:38]} 15. Be2 {[%emt 0:07:11]} Rh8 {[%emt 0:04:56]} 16. c4 {[%emt 0:02:33]} Bb7 {[%emt 0:01:22]} 17. Bf3 {[%emt 0:03:47]} Bxf3 {[%emt 0:04:19]} 18. Qxf3 {[%emt 0:00:19]} Rb8 {[%emt 0:05:13]} 19. g3 {[%emt 0:05:32]} Qc7 {[%emt 0:03:51]} 20. Qe3 {[%emt 0:02:10]} Rd8 {[%emt 0:03:16]} 21. O-O-O {[%emt 0:01:42]} Kf8 {[%emt 0:03:21]} 22. f4 {[%emt 0:02:56]} Nb8 {[%emt 0:03:28]} 23. Ne4 {[%emt 0:05:25]} Kg7 {[%emt 0:00:39]} 24. Nd6 {[%emt 0:02:23]} Rhf8 {[%emt 0:00:55]} 25. Qe2 {[%emt 0:04:14]} f5 {[%emt 0:06:29]} 26. exf6+ {[%emt 0:03:01]} Bxf6 {[%emt 0:00:15]} 27. Bxf6+ {[%emt 0:00:59]} Rxf6 {[%emt 0:00:13]} 28. Qe5 {[%emt 0:00:22]} Nc6 {[%emt 0:00:24]} 29. Ne8+ {[%emt 0:23:00]} 1-0

[Event "Nordic Chess-ch 2019"]
[Site "Sarpsborg"]
[Date "2019.06.27"]
[Round "9.24"]
[White "Johansen, Kolbjorn-Albin"]
[Black "Johansen, Torbjorn Reidar"]
[Result "1/2-1/2"]
[ECO "A48"]
[WhiteElo "1690"]
[BlackElo "1754"]
[Annotator "NA"]
[PlyCount "89"]
[EventDate "2019.06.21"]
[EventType "swiss"]
[EventCountry "NOR"]
[SourceTitle "playchess.com"]
[Source "ChessBase"]
[SourceQuality "1"]
[TimeControl "40/5400+30:1800+30"]

1. d4 {[%emt 0:00:00]} Nf6 {[%emt 0:05:53]} 2. Bf4 {[%emt 0:00:10]} d6 {[%emt 0:00:27]} 3. e3 {[%emt 0:00:24]} g6 {[%emt 0:00:06]} 4. Nf3 {[%emt 0:00:19]} Bg7 {[%emt 0:00:06]} 5. Be2 {[%emt 0:00:36]} O-O {[%emt 0:00:08]} 6. h3 {[%emt 0:00:33]} Nbd7 {[%emt 0:02:46]} 7. O-O {[%emt 0:00:33]} c5 {[%emt 0:00:26]} 8. c3 {[%emt 0:00:52]} b6 {[%emt 0:05:40]} 9. Nbd2 {[%emt 0:02:32]} Bb7 {[%emt 0:00:09]} 10. a4 {[%emt 0:00:37]} Nd5 {[%emt 0:04:36]} 11. Bh2 {[%emt 0:02:42]} e5 {[%emt 0:03:15]} 12. Nc4 {[%emt 0:08:24]} Qc7 {[%emt 0:03:35]} 13. Qb3 {[%emt 0:09:29]} Bc6 {[%emt 0:05:51]} 14. Rfd1 {[%emt 0:06:01]} Rad8 {[%emt 0:02:49]} 15. Na3 {[%emt 0:07:02]} Ne7 {[%emt 0:05:00]} 16. d5 {[%emt 0:11:02]} Ba8 {[%emt 0:04:14]} 17. e4 {[%emt 0:03:05]} Kh8 {[%emt 0:01:19]} 18. c4 {[%emt 0:06:51]} f5 {[%emt 0:00:56]} 19. Ng5 {[%emt 0:01:51]} Rf6 {[%emt 0:03:05]} 20. Nb5 {[%emt 0:06:59]} Qb8 {[%emt 0:12:26]} 21. f3 {[%emt 0:05:38]} Nf8 {[%emt 0:01:23]} 22. h4 {[%emt 0:01:45]} h6 {[%emt 0:07:01]} 23. Nh3 {[%emt 0:00:33]} Nh7 {[%emt 0:03:27]} 24. Nc3 {[%emt 0:02:35]} f4 {[%emt 0:01:13]} 25. a5 {[%emt 0:01:27]} g5 {[%emt 0:07:04]} 26. h5 {[%emt 0:04:09]} Rg8 {[%emt 0:03:33]} 27. axb6 {[%emt 0:01:42]} axb6 {[%emt 0:02:34]} 28. Nf2 {[%emt 0:00:24]} Qe8 {[%emt 0:00:22]} 29. Ng4 {[%emt 0:02:00]} Rff8 {[%emt 0:00:10]} 30. Qxb6 {[%emt 0:01:00]} Qb8 {[%emt 0:03:51]} 31. Qxb8 {[%emt 0:00:59]} Rxb8 {[%emt 0:00:01]} 32. Nb5 {[%emt 0:00:36]} Rgd8 {[%emt 0:01:07]} 33. Ra6 {[%emt 0:05:27]} Nc8 {[%emt 0:00:16]} 34. Rda1 {[%emt 0:00:34]} Bb7 {[%emt 0:00:22]} 35. R6a2 {[%emt 0:00:28]} Bf8 {[%emt 0:00:48]} 36. Kf2 {[%emt 0:03:04]} Nb6 {[%emt 0:01:43]} 37. Ke1 {[%emt 0:00:42]} Nd7 {[%emt 0:01:08]} 38. Kd2 {[%emt 0:01:26]} Ndf6 {[%emt 0:00:17]} 39. Kc3 {[%emt 0:03:01]} Nxh5 {[%emt 0:00:15]} 40. Nc7 {[%emt 0:01:27]} Bc8 {[%emt 0:00:39]} 41. Nf2 {[%emt 0:08:09]} N5f6 {[%emt 0:00:59]} 42. Ra8 {[%emt 0:11:34]} Bd7 {[%emt 0:00:44]} 43. Rxb8 {[%emt 0:01:39]} Rxb8 {[%emt 0:00:20]} 44. Ra8 {[%emt 0:01:08]} Rxa8 {[%emt 0:00:13]} 45. Nxa8 {[%emt 0:00:03]} 1/2-1/2

[Event "Nordic Chess-ch 2019"]
[Site "Sarpsborg"]
[Date "2019.06.27"]
[Round "9.25"]
[White "Berisha, Xhafer"]
[Black "Tenold, Andreas"]
[Result "0-1"]
[ECO "A20"]
[WhiteElo "1340"]
[BlackElo "1959"]
[Annotator "NA RC"]
[PlyCount "98"]
[EventDate "2019.06.21"]
[EventType "swiss"]
[EventCountry "NOR"]
[SourceTitle "playchess.com"]
[Source "ChessBase"]
[SourceQuality "1"]
[TimeControl "40/5400+30:1800+30"]

1. e3 {[%emt 0:11:22]} e5 {[%emt 0:00:00]} 2. c4 {[%emt 0:00:09]} Nf6 {[%emt 0:00:08]} 3. f4 {[%emt 0:00:25]} exf4 {[%emt 0:02:32]} 4. exf4 {[%emt 0:00:20]} d5 {[%emt 0:01:32]} 5. Nf3 {[%emt 0:00:17]} Bg4 {[%emt 0:08:47]} 6. Be2 {[%emt 0:01:31]} Bd6 {[%emt 0:04:41]} 7. d4 {[%emt 0:00:25]} dxc4 {[%emt 0:02:42]} 8. O-O {[%emt 0:00:48]} O-O {[%emt 0:01:50]} 9. Ne5 {[%emt 0:00:16]} Bxe2 {[%emt 0:03:20]} 10. Qxe2 {[%emt 0:00:18]} c5 {[%emt 0:06:41]} 11. Nxc4 {[%emt 0:00:42]} cxd4 {[%emt 0:00:36]} 12. Qf3 {[%emt 0:01:03]} Nc6 {[%emt 0:00:24]} 13. f5 {[%emt 0:00:19]} Bc5 {[%emt 0:20:09]} 14. Bg5 {[%emt 0:00:37]} Rc8 {[%emt 0:03:50]} 15. Nbd2 {[%emt 0:00:12]} b5 {[%emt 0:00:26]} 16. Na3 {[%emt 0:00:24]} a6 {[%emt 0:05:51]} 17. Rac1 {[%emt 0:02:39]} Ne5 {[%emt 0:02:27]} 18. Qg3 {[%emt 0:00:42]} Ned7 {[%emt 0:04:47]} 19. Rfe1 {[%emt 0:00:53]} Qb6 {[%emt 0:00:31]} 20. Kh1 {[%emt 0:00:26]} Bd6 {[%emt 0:04:58]} 21. Qf2 {[%emt 0:01:16]} Ng4 {[%emt 0:01:16]} 22. Qh4 {[%emt 0:00:39]} Rxc1 {[%emt 0:03:36]} 23. Rxc1 {[%emt 0:00:12]} Nde5 {[%emt 0:00:08]} 24. Ne4 {[%emt 0:01:39]} f6 {[%emt 0:03:24]} 25. Bf4 {[%emt 0:09:10]} g5 {[%emt 0:00:51]} 26. fxg6 {[%emt 0:00:25]} Nxg6 {[%emt 0:00:29]} 27. Qxg4 {[%emt 0:00:53]} Bxf4 {[%emt 0:01:04]} 28. Rf1 {[%emt 0:00:18]} f5 {[%emt 0:00:23]} 29. Qe2 {[%emt 0:01:52]} fxe4 {[%emt 0:00:25]} 30. Qxe4 {[%emt 0:00:04]} Qd6 {[%emt 0:00:59]} 31. Nc2 {[%emt 0:02:19]} d3 {[%emt 0:02:30]} 32. Nd4 {[%emt 0:00:12]} Be5 {[%emt 0:02:47]} 33. Nf5 {[%emt 0:00:49]} d2 {[%emt 0:01:54]} 34. Rd1 {[%emt 0:00:27]} Qd7 {[%emt 0:01:07]} 35. g4 {[%emt 0:00:20]} Bxb2 {[%emt 0:01:19]} 36. Qc2 {[%emt 0:02:00]} Qd5+ {[%emt 0:02:19]} 37. Kg1 {[%emt 0:00:21]} Bd4+ {[%emt 0:01:32]} 38. Nxd4 {[%emt 0:01:14]} Qxd4+ {[%emt 0:00:02]} 39. Kh1 {[%emt 0:00:50]} Qd5+ {[%emt 0:00:27]} 40. Kg1 {[%emt 0:00:27]} Nf4 {[%emt 0:01:03]} 41. Kf2 {[%emt 0:31:41]} Qg2+ {[%emt 0:32:39]} 42. Ke3 {[%emt 0:00:23]} Qe2+ {[%emt 0:00:04]} 43. Kd4 {[%emt 0:00:32]} Rd8+ {[%emt 0:00:06]} 44. Kc3 {[%emt 0:00:17]} Rc8+ {[%emt 0:00:16]} 45. Kb2 {[%emt 0:00:13]} Rxc2+ {[%emt 0:00:37]} 46. Kxc2 {[%emt 0:00:13]} Qd3+ {[%emt 0:00:12]} 47. Kb2 {[%emt 0:00:23]} Ne2 {[%emt 0:00:09]} 48. g5 {[%emt 0:01:11]} Qc3+ {[%emt 0:00:07]} 49. Kb1 {[%emt 0:00:08]} Qc1+ {[%emt 0:00:01]} 0-1

[Event "Nordic Chess-ch 2019"]
[Site "Sarpsborg"]
[Date "2019.06.27"]
[Round "9.26"]
[White "Holand, Per Fredrik"]
[Black "Strand, Vetle Bjorge"]
[Result "0-1"]
[ECO "D02"]
[WhiteElo "1883"]
[BlackElo "1609"]
[Annotator "NA RC"]
[PlyCount "40"]
[EventDate "2019.06.21"]
[EventType "swiss"]
[EventCountry "NOR"]
[SourceTitle "playchess.com"]
[Source "ChessBase"]
[SourceQuality "1"]
[TimeControl "40/5400+30:1800+30"]

1. d4 {[%emt 0:02:05]} d5 {[%emt 0:00:00]} 2. Bf4 {[%emt 0:00:08]} Nf6 {[%emt 0:00:00]} 3. e3 {[%emt 0:00:12]} Bf5 {[%emt 0:00:09]} 4. c4 {[%emt 0:00:40]} e6 {[%emt 0:00:23]} 5. Nf3 {[%emt 0:03:09]} c5 {[%emt 0:03:23]} 6. Nc3 {[%emt 0:01:51]} dxc4 {[%emt 0:09:09]} 7. Bxc4 {[%emt 0:00:36]} a6 {[%emt 0:00:33]} 8. dxc5 {[%emt 0:05:44]} Qxd1+ {[%emt 0:00:58]} 9. Rxd1 {[%emt 0:00:09]} Bxc5 {[%emt 0:00:22]} 10. Nd4 {[%emt 0:00:54]} Bg6 {[%emt 0:01:05]} 11. f3 {[%emt 0:02:05]} Nbd7 {[%emt 0:03:02]} 12. Nb3 {[%emt 0:00:14]} Bb6 {[%emt 0:03:53]} 13. Ke2 {[%emt 0:00:37]} Rc8 {[%emt 0:01:22]} 14. Bd3 {[%emt 0:00:03]} Bc7 {[%emt 0:16:49]} 15. Bxc7 {[%emt 0:01:15]} Rxc7 {[%emt 0:04:49]} 16. Rd2 {[%emt 0:01:35]} Ke7 {[%emt 0:01:33]} 17. e4 {[%emt 0:00:14]} Ne5 {[%emt 0:01:34]} 18. Rhd1 {[%emt 0:00:46]} Rd8 {[%emt 0:01:36]} 19. Ke3 {[%emt 0:00:18]} Rxd3+ {[%emt 0:05:24]} 20. Rxd3 {[%emt 0:00:12]} Nc4+ {[%emt 0:00:43]} 0-1